Workbook

Sheet Worksheet
A1: Smarter Balanced Hosting Requirements Cost Calculation Spreadsheet Version 2
A2: 2014-03-30
A4: This spreadsheet models the hosting costs for a state wishing to deploy the Smarter Balanced open source system. The following assumptions apply:
A6: 1. Cloud deployment on Amazon Web Services (AWS) is assumed. AWS is selected because it is a ubiquitous, robust and full-featured cloud environment, but vendors are under no obligation to use AWS.
A7: 2. Deployment units are assumed as described in the accompanying Smarter Balanced Hosting Requirements document. These deployment configurations are preliminary and subject to change.
A8: 3. AWS pricing is valid as of 9 September 2013. AWS pricing is subject to change without notice.
A9: 4. User input is required about state information such as total and concurrent students and for technological input such as database overhead factors, AWS Availability Zones and instance types.
A10: The validity of the costs calculated by this spreadsheet are dependent on the validity of the inputs provided. Some of these inputs require some knowledge of the AWS infrastructure.
A11: 5. A single Test Registration and Administration deployment group is assumed here that will support multiple Test Delivery nodes. At this time, we are unsure that one single Test Registration and
A12: Administration deployment group can be scaled sufficiently with AWS cloud resources alone to support a state as large as California.
A13: 6. This spreadsheet only encompasses the components being developed by Smarter Balanced Contract 11, Test Delivery System. Additional costs may be incurred by deployment of components from
A14: other contracts such Item Authoring and Item Bank (RFP-07), Data Warehouse and Reporting (RFP-15) and Digital Library (RFP-23) that are not represented here.
A15: 7. In order for a state to deploy Test Delivery, all deployment groups in this spreadsheet are required except Assessment Creation and Management. A means of making thew Assessment
A16: Creation and Management deployment group optional is provided for states that do not need this component.
A17: 8. This spreadsheet is primed with inputs consistent with the State of California as a model, and so assumes a worst-case scenario in terms of scale. Other states should input data specific to their needs.
A18: 9. The costs provided here are estimates based on the information provided and best information known at the time of writing. Actual results may differ somewhat from these estimates.
A19: 10. The costs calculated by this spreadsheet are strictly cloud-based infrastructure and support contract costs. They do not include staffing costs, management costs or any other incidental costs.
A22: Please enter information in the green cells only. Information in the white cells automatically recalculate based on other settings
A24: STATE INFORMATION
A25: The ratio of concurrent students to total students depends on the length of the testing window and other factors. This ratio is displayed to the right of the green input fields.
A27: Total number of students for Test Delivery | B27: 3400000
A28: Maximum expected number of concurrent students | B28: 265229 | D28: % concurrent students | E28: =B28/B27 -> 0.07800852941 | F28: percent
A30: TEST DELIVERY INFORMATION
A31: These inputs provide information about the amount of expected traffic per student and the amount of students a single web server can handle. This is combined with the state information above.
A33: Number of assessments loaded into Test Delivery System | B33: 50
A34: Average number of items per assessment | B34: 20
A35: Average size of each item on disk in KB | B35: 800
A36: Items per student per hour | B36: 20 | D36: DB Server size | E36: =MAX(E37/10,MinTDStorage) -> 500 | F36: GB
A37: Average KB per item | B37: 20 | D37: Student DB Server IOPS | E37: =MAX(100,B28/AverageStudentsPerIops) -> 884.0966667 | F37: Provisioned IOPS
A38: Maximum number of concurrent students per web server | B38: 8000 | D38: Exam DB Server IOPS | E38: =CEILING(MAX(100,B28/AverageStudentsPerIops * 2.5), 1) -> 2211 | F38: Provisioned IOPS
A41: TEST INTEGRATION & SCORING INFORMATION
A43: Number of items | B43: 200000 | D43: DB Size | E43: =MAX(CEILING(B43*B45*B44*B46*(100%+B47)/1024^2,1),MinTISStorage) -> 239 | F43: GB
A44: Average size of an item in KB | B44: 20
A45: Item Version Overhead (copy item assets for versioning) | B45: 5
A46: Test Package overhead (items are replicated in packages) | B46: 10
A47: Database overhead | B47: 0.25
A49: TEST REGISTATION AND ADMINISTRATION INFORMATION
A50: These inputs provide information about the amount of non-student users and data that is required for Test Registration.
A52: Average KB of registration information per student | B52: 50 | D52: Data Transfer | E52: =CEILING(B27*B52*(100%+B53)*(100%+B54)*((B55*B56)/(24*365))*B57*B58/1025^2,1) -> 92 | F52: GB/hr
A53: Multiplier for users and entities based on students | B53: 0.25 | D53: DB Size | E53: =MAX(CEILING(B27*B52*(100%+B53)*(100%+B54)/1024^2,1),MinTRAStorage) -> 254 | F53: GB
A54: Database overhead | B54: 0.25
A55: Data upload hours per day | B55: 6
A56: Data upload days | B56: 60
A57: Data out multiplier (a factor to account for the number of times the data will be resent or the amount of incremental data sent) | B57: 4
A58: Data Out Component Multiplier (data goes to Data Warehouse, partial data goes to Test Delivery and SSO | B58: 2.2
A60: SSO INFORMATION
A61: Due to the critical nature of SSO, it is deployed in its own deployment group separate from any other shared service. The same is true for Monitoring and Alerting.
A63: Peak authentication per hour as a &% of total users | B63: 0.25 | D63: Total number of users | E63: =B27*B53 -> 850000 | F63: Users
A64: size in KB of each authentication | B64: 50 | D64: Peak authentications/hr | E64: =B63*E63 -> 212500 | F64: Authentications/hr
A65: DB overhead including session storage | B65: 0.5 | D65: Data Transfer | E65: =CEILING(E64*B64/1025^2,1) -> 11 | F65: GB/hr
D66: DB Size | E66: =MAX(CEILING(E63*B64*(100%+B65)/1024^2,1),MinSSOStorage) -> 61 | F66: GB
A68: ASSESSMENT CREATION AND MANAGEMENT INFORMATION
A69: If Test Authoring is required in your deployment, select "Yes" otherwise select "No"
A71: Is Test Authoring required in your deployment? | B71: Yes
A73: SERVER INPUTS
A75: Selected Amazon Availability Zone | B75: N. Virginia
A76: Data Transfer Capacity Overhead | B76: 0.25
A78: Web Servers (EC2 load balancer and server instances) | B78: Test Int & Scoring | C78: Test Reg & Adm | D78: SSO | E78: Mon & Alerting | F78: Shared Services | G78: Assmt Creation & Mgmt
A79: Number of component groups | B79: =CEILING(B28/MaxConcurrentStudentsLegacy,1) -> 6 | C79: 1 | D79: 1 | E79: 1 | F79: 1 | G79: 1
A80: Number of load balancers | B80: 1 | C80: 1 | D80: 2 | F80: 1 | G80: 1
A81: Data transfer GB per hour OUT | B81: 1 | C81: =E52 -> 92 | D81: =E65 -> 11 | E81: 1 | F81: 1 | G81: 5
A82: Web server instance type | B82: m3.xlarge (GP) | C82: c4.4xlarge (CO) | D82: c4.8xlarge (CO) | E82: No Web Server | F82: m3.xlarge (GP) | G82: m3.xlarge (GP)
A83: Number of baseline web servers | B83: 2 | C83: 2 | D83: 4 | E83: 1 | F83: 2 | G83: 2 | H83: GP=General Purpose
A84: Max number of on-demand web servers | B84: 1 | C84: 1 | D84: 0 | F84: 2 | G84: 1 | H84: CO=Compute Optimized
A85: Hours per day of on-demand web server operation | B85: 16 | C85: 16 | D85: 8 | F85: 10 | G85: 16 | H85: MO=Memory Optimized
A86: Number of days per year of on-demand web server operation | B86: 200 | C86: 200 | D86: 200 | F86: 200 | G86: 200 | H86: SO=Storage Optimized
A87: Web Server Storage (per instance)
A88: Std EBS Storage (GB)
A89: Std EBS Storage I/O Requests (expected avg IOPS/sec)
A90: Std S3 Snapshot (GB)
A91: Std Prov IOPS EBS Storage (GB) | D91: =MAX(E66,MinSSOStorage) -> 61 | E91: 250
A92: Std Prov IOPS EBS Storage IOPs (IOPS/sec) | D92: =CEILING(D91*3,100) -> 200 | E92: 750
A93: Std Prov IOPS S3 Snapshot (GB) | D93: =D91*2 -> 122 | E93: 350
A94: Database Server (single RDS instance)
A95: Database server instance type | B95: db.m3.xlarge (DB-GP-MZ) | C95: db.m3.xlarge (DB-GP-MZ) | D95: No DB Server | E95: No DB Server | F95: db.m3.large (DB-GB-MZ) | G95: db.m2.xl (DB-MO) | H95: Legend
A96: Database Storage (single instance) | H96: DB-GP=Database, General Purpose
A97: DB Std EBS Storage | H97: DB-MO=Database, memory Optimized
A98: DB Std EBS Storage I/O Requests | H98: DB-GP-MZ=Databse, General Purpose, Multi-Availability Zone
A99: DB Prov IOPS EBS Storage | H99: DB-MO-MZ=Database, Memory Optimized, Multi-Availability Zone
A100: DB Prov IOPS EBS Storage IOPs
A101: DB MultiAZ Prov IOPS EBS Storage | B101: =E43 -> 239 | C101: =E53 -> 254 | F101: 100 | G101: 1000
A102: DB MultiAZ Prov IOPS EBS Storage IOPs | B102: =CEILING(B101*3,100) -> 800 | C102: =CEILING(C101*3,100) -> 800 | F102: 300 | G102: 3000
A104: Test Delivery System Configuration
A106: Kubernetes Cluster Environment
A107: Number of load balancers | B107: 1
A108: Number of Kubernetes master nodes | B108: 1 | C108: Note: The master and worker nodes are AWS EC2 instances. Since they are not physical servers, the service pods do not affect cost; they are hosted on the Kuberneetes worker nodes. The pod quantities are shown to assist with deployment configuration.
A109: Master node instance type | B109: m3.xlarge (GP)
A110: Master node EBS storage in GB | B110: 20
A111: Master node EBS Storage I/O Requests (expected average IOPS/sec)
A112: Master node S3 Snapshot in GB
A113: Master node Provisioned IOPS EBS Storage (GB)
A114: Master node Provisioned IOPS EBS Storage IOPS (IOPS/sec)
A115: Master node IOPS S3 Snapshot (GB)
A116: Number of Kubernetes worker nodes | B116: =CEILING(B28/MaxConcurrentStudents,1) -> 39
A117: Worker node instance type | B117: m3.2xlarge (GP)
A118: Worker node EBS storage in GB | B118: 8
A119: Worker node EBS Storage I/O Requests (expected average IOPS/sec)
A120: Worker node S3 Snapshot in GB
A121: Worker node Provisioned IOPS EBS Storage (GB)
A122: Worker node Provisioned IOPS EBS Storage IOPS (IOPS/sec)
A123: Worker node IOPS S3 Snapshot (GB)
A124: Number of Assessment Service pods | B124: 2
A125: Number of Config Service pods | B125: 2
A126: Number of Exam Service pods | B126: =CEILING(B28/MaxConcurrentStudentsExamService,1) -> 80
A127: Number of Exam Results Transmitter pods | B127: 2
A128: Number of Session Service pods | B128: 2
A129: Number of Student Service pods | B129: 2
A130: Number of Proctor WAR application pods | B130: =CEILING(B28/MaxConcurrentStudentsProctorWar,1) -> 18
A131: Number of Student WAR application pods | B131: =CEILING(B28/MaxConcurrentStudentsStudentWar,1) -> 71
A132: Data transfer GB per hour OUT | B132: =CEILING(B28*B36*B37*(100%+DataCapacityOH)/1024^2, 1) -> 127
A133: Hours per day of environment operation | B133: 8
A134: Days per year of environment operation | B134: 120
A135: AWS Elasticache Redis Cluster
A136: Node type
A137: Student WAR Database Server
A138: Databse engine | B138: MySQL
A139: Instance type | B139: db.m3.large (DB-GB)
A140: Student WAR Database Server Storage
A141: DB Std EBS Storage
A142: DB Std EBS Storage I/O Requests
A143: DB Prov IOPS EBS Storage
A144: DB Prov IOPS EBS Storage IOPs
A145: DB MultiAZ Prov IOPS EBS Storage | B145: =E36 -> 500
A146: DB MultiAZ Prov IOPS EBS Storage IOPs | B146: =E37 -> 884.0966667
A147: Exam Service Database Server
A148: Databse engine | B148: Aurora
A149: Instance type | B149: db.r3.2xlarge
A150: Exam Service Database Server Storage
A151: DB Std EBS Storage
A152: DB Std EBS Storage I/O Requests
A153: DB Prov IOPS EBS Storage
A154: DB Prov IOPS EBS Storage IOPs
A155: DB MultiAZ Prov IOPS EBS Storage | B155: =E36 -> 500
A156: DB MultiAZ Prov IOPS EBS Storage IOPs | B156: =E38 -> 2211
A157: S3 Storage for Assessment Item Content
A158: Storage for Assessment Items in MB | B158: =B33*B34*B35/1024 -> 781.25
A159: Centralized Logging
A160: Elastic Search master instance type | B160: m4.large.elasticsearch (GP)
A161: Number of Elastic Search master instances | B161: 3
A162: Elastics Search data instance | B162: m4.large.elasticsearch (GP)
A163: Number of Elasticsearch data instances | B163: 3
A164: Elasticsearch node EBS storage in GB (per instance) | B164: 400 | C164: Note: The master and data nodes are all configured to have the same amount of storage space
A165: Logstash node instances type | B165: c4.large (CO)
A166: Number of Logstash instances | B166: 3
A167: LogStash node EBS storage in GB (per instance) | B167: 8
A168: LogStash node EBS Storage I/O Requests (expected average IOPS/sec)
A169: LogStash node S3 Snapshot in GB (per instance)
A170: LogStash node Provisioned IOPS EBS Storage (GB) (per instance)
A171: LogStash node Provisioned IOPS EBS Storage IOPS (IOPS/sec) (per instance)
A172: LogStash node IOPS S3 Snapshot (GB) (per instance)
A174: UNIT COSTS
A175: Unit costs | B175: Test Delivery | C175: Test Int & Scoring | D175: Test Reg & Adm | E175: SSO & Perm | F175: Mon & Alerting | G175: Shared Services | H175: Assmt Creation & Mgmt | I175: Units
A176: Load Balancer | B176: =IFERROR(VLOOKUP($A176,EC2costs,VLOOKUP(SelectedRegion,Region,2,FALSE),FALSE),0) -> 0.025 | C176: =IFERROR(VLOOKUP($A176,EC2costs,VLOOKUP(SelectedRegion,Region,2,FALSE),FALSE),0) -> 0.025 | D176: 0.025 | E176: 0.025 | F176: 0.025 | G176: 0.025 | H176: 0.025 | I176: =IFERROR(VLOOKUP($A176,EC2costs,5,FALSE),0) -> each
A177: Load Balancer Data | B177: 0.008 | C177: 0.008 | D177: 0.008 | E177: 0.008 | F177: 0.008 | G177: 0.008 | H177: 0.008 | I177: =IFERROR(VLOOKUP($A177,EC2costs,5,FALSE),0) -> GB/hour
A178: Data Transfer Out | B178: 0.12 | C178: 0.12 | D178: 0.12 | E178: 0.12 | F178: 0.12 | G178: 0.12 | H178: 0.12 | I178: =IFERROR(VLOOKUP($A178,EC2costs,5,FALSE),0) -> GB/hour
A179: Web server | B179: Not Applicable | C179: =IFERROR(VLOOKUP(B82,EC2costs,VLOOKUP(SelectedRegion,Region,2,FALSE),FALSE),0) -> 0.266 | D179: =IFERROR(VLOOKUP(C82,EC2costs,VLOOKUP(SelectedRegion,Region,2,FALSE),FALSE),0) -> 0.838 | E179: =IFERROR(VLOOKUP(D82,EC2costs,VLOOKUP(SelectedRegion,Region,2,FALSE),FALSE),0) -> 1.675 | F179: =IFERROR(VLOOKUP(E82,EC2costs,VLOOKUP(SelectedRegion,Region,2,FALSE),FALSE),0) -> 0 | G179: =IFERROR(VLOOKUP(F82,EC2costs,VLOOKUP(SelectedRegion,Region,2,FALSE),FALSE),0) -> 0.266 | H179: =IFERROR(VLOOKUP(G82,EC2costs,VLOOKUP(SelectedRegion,Region,2,FALSE),FALSE),0) -> 0.266 | I179: each
A180: Kubernetes master node | B180: =IFERROR(VLOOKUP(B109,EC2costs,VLOOKUP(SelectedRegion,Region,2,FALSE),FALSE),0) -> 0.266 | C180: Not Applicable | D180: Not Applicable | E180: Not Applicable | F180: Not Applicable | G180: Not Applicable | H180: Not Applicable | I180: each
A181: Kubernetes worker node | B181: =IFERROR(VLOOKUP(B117,EC2costs,VLOOKUP(SelectedRegion,Region,2,FALSE),FALSE),0) -> 0.532 | C181: Not Applicable | D181: Not Applicable | E181: Not Applicable | F181: Not Applicable | G181: Not Applicable | H181: Not Applicable | I181: each
A182: Std EBS Storage | B182: =IFERROR(VLOOKUP($A182,EC2storagecosts,VLOOKUP(SelectedRegion,Region,2,FALSE),FALSE),0) -> 0.1 | C182: =IFERROR(VLOOKUP($A182,EC2storagecosts,VLOOKUP(SelectedRegion,Region,2,FALSE),FALSE),0) -> 0.1 | D182: 0.1 | E182: 0.1 | F182: 0.1 | G182: 0.1 | H182: 0.1 | I182: =IFERROR(VLOOKUP($A182,EC2storagecosts,5,FALSE),0) -> GB
A183: Std EBS Storage I/O Requests | B183: 0.05 | C183: 0.05 | D183: 0.05 | E183: 0.05 | F183: 0.05 | G183: 0.05 | H183: 0.05 | I183: 10^6 I/O Requests
A184: Std S3 Snapshot | B184: 0.095 | C184: 0.095 | D184: 0.095 | E184: 0.095 | F184: 0.095 | G184: 0.095 | H184: 0.095 | I184: GB
A185: Std Prov IOPS EBS Storage | B185: 0.125 | C185: 0.125 | D185: 0.125 | E185: 0.125 | F185: 0.125 | G185: 0.125 | H185: 0.125 | I185: GB
A186: Std Prov IOPS EBS Storage IOPs | B186: 0.065 | C186: 0.065 | D186: 0.065 | E186: 0.065 | F186: 0.065 | G186: 0.065 | H186: 0.065 | I186: Provisioned IOPS per sec
A187: Std Prov IOPS S3 Snapshot | B187: 0.095 | C187: 0.095 | D187: 0.095 | E187: 0.095 | F187: 0.095 | G187: 0.095 | H187: 0.095 | I187: GB
A188: Database server | B188: Not Applicable | C188: =IFERROR(VLOOKUP(B95,RDScosts,VLOOKUP(SelectedRegion,Region,2,FALSE),FALSE),0) -> 0.37 | D188: =IFERROR(VLOOKUP(C95,RDScosts,VLOOKUP(SelectedRegion,Region,2,FALSE),FALSE),0) -> 0.37 | E188: =IFERROR(VLOOKUP(D95,RDScosts,VLOOKUP(SelectedRegion,Region,2,FALSE),FALSE),0) -> 0 | F188: =IFERROR(VLOOKUP(E95,RDScosts,VLOOKUP(SelectedRegion,Region,2,FALSE),FALSE),0) -> 0 | G188: =IFERROR(VLOOKUP(F95,RDScosts,VLOOKUP(SelectedRegion,Region,2,FALSE),FALSE),0) -> 0 | H188: =IFERROR(VLOOKUP(G95,RDScosts,VLOOKUP(SelectedRegion,Region,2,FALSE),FALSE),0) -> 0.33 | I188: each
A189: Student WAR Database server | B189: =IF(B$138="MySQL", IFERROR(VLOOKUP(B139,RDScosts,VLOOKUP(SelectedRegion,Region,2,FALSE),FALSE),0), IFERROR(VLOOKUP(B139,RDSauroracosts,VLOOKUP(SelectedRegion,Region,2,FALSE),FALSE),0)) -> 0.185 | C189: Not Applicable | D189: Not Applicable | E189: Not Applicable | F189: Not Applicable | G189: Not Applicable | H189: Not Applicable | I189: each
A190: Exam Service Database server | B190: =IF(B$148="MySQL", IFERROR(VLOOKUP(B149,RDScosts,VLOOKUP(SelectedRegion,Region,2,FALSE),FALSE),0), IFERROR(VLOOKUP(B149,RDSauroracosts,VLOOKUP(SelectedRegion,Region,2,FALSE),FALSE),0)) -> 1.16 | C190: Not Applicable | D190: Not Applicable | E190: Not Applicable | F190: Not Applicable | G190: Not Applicable | H190: Not Applicable | I190: each
A191: DB Std EBS Storage | B191: =IFERROR(VLOOKUP($A191,RDSstoragecosts,VLOOKUP(SelectedRegion,Region,2,FALSE),FALSE),0) -> 0.115 | C191: =IFERROR(VLOOKUP($A191,RDSstoragecosts,VLOOKUP(SelectedRegion,Region,2,FALSE),FALSE),0) -> 0.115 | D191: 0.115 | E191: 0.115 | F191: 0.115 | G191: 0.115 | H191: 0.115 | I191: =IFERROR(VLOOKUP($A191,RDSstoragecosts,5,FALSE),0) -> GB
A192: DB Std EBS Storage I/O Requests | B192: 0.1 | C192: 0.1 | D192: 0.1 | E192: 0.1 | F192: 0.1 | G192: 0.1 | H192: 0.1 | I192: Million I/O Requests
A193: DB Prov IOPS EBS Storage | B193: 0.125 | C193: 0.125 | D193: 0.125 | E193: 0.125 | F193: 0.125 | G193: 0.125 | H193: 0.125 | I193: GB
A194: DB Prov IOPS EBS Storage IOPs | B194: 0.1 | C194: 0.1 | D194: 0.1 | E194: 0.1 | F194: 0.1 | G194: 0.1 | H194: 0.1 | I194: Provisioned IOPS per sec
A195: DB MultiAZ Prov IOPS EBS Storage | B195: 0.25 | C195: 0.25 | D195: 0.25 | E195: 0.25 | F195: 0.25 | G195: 0.25 | H195: 0.25 | I195: GB
A196: DB MultiAZ Prov IOPS EBS Storage IOPs | B196: 0.2 | C196: 0.2 | D196: 0.2 | E196: 0.2 | F196: 0.2 | G196: 0.2 | H196: 0.2 | I196: Provisioned IOPS per sec
A197: Elasticsearch Provisioned IOPS EBS Storage | B197: =IFERROR(VLOOKUP($A197,ESstoragecosts,VLOOKUP(SelectedRegion,Region,2,FALSE),FALSE),0) -> 0.169 | C197: Not Applicable | D197: Not Applicable | E197: Not Applicable | F197: Not Applicable | G197: Not Applicable | H197: Not Applicable | I197: =IFERROR(VLOOKUP($A197,ESstoragecosts,5,FALSE),0) -> GB
A198: Elasticsearch Provisioned IOPS EBS Rate | B198: =IFERROR(VLOOKUP($A198,ESstoragecosts,VLOOKUP(SelectedRegion,Region,2,FALSE),FALSE),0) -> 0.088 | C198: Not Applicable | D198: Not Applicable | E198: Not Applicable | F198: Not Applicable | G198: Not Applicable | H198: Not Applicable | I198: =IFERROR(VLOOKUP($A198,ESstoragecosts,5,FALSE),0) -> Provisioned IOPS per month
A199: CloudWatch Monitoring | B199: =IFERROR(VLOOKUP($A199,CloudwatchCosts,VLOOKUP(SelectedRegion,Region,2,FALSE),FALSE),0) -> 3.5 | C199: =IFERROR(VLOOKUP($A199,CloudwatchCosts,VLOOKUP(SelectedRegion,Region,2,FALSE),FALSE),0) -> 3.5 | D199: 3.5 | E199: 3.5 | F199: 3.5 | G199: 3.5 | H199: 3.5 | I199: 0
A200: Elastic Search master instance | B200: =IFERROR(VLOOKUP(B160,EScosts,VLOOKUP(SelectedRegion,Region,2,FALSE),FALSE),0) -> 0.151 | C200: Not Applicable | D200: Not Applicable | E200: Not Applicable | F200: Not Applicable | G200: Not Applicable | H200: Not Applicable
A201: Elastic Search data instance | B201: =IFERROR(VLOOKUP(B162,EScosts,VLOOKUP(SelectedRegion,Region,2,FALSE),FALSE),0) -> 0.151 | C201: Not Applicable | D201: Not Applicable | E201: Not Applicable | F201: Not Applicable | G201: Not Applicable | H201: Not Applicable
A202: Logstash/nginx node | B202: =IFERROR(VLOOKUP(B165,EC2costs,VLOOKUP(SelectedRegion,Region,2,FALSE),FALSE),0) -> 0.105 | C202: Not Applicable | D202: Not Applicable | E202: Not Applicable | F202: Not Applicable | G202: Not Applicable | H202: Not Applicable
A204: On-demand web server utilization | B204: =(B133*B134)/(24*365) -> 0.1095890411 | C204: =(B85*B86)/(24*365) -> 0.3652968037 | D204: =(C85*C86)/(24*365) -> 0.3652968037 | E204: =(D85*D86)/(24*365) -> 0.1826484018 | F204: =(E85*E86)/(24*365) -> 0 | G204: =(F85*F86)/(24*365) -> 0.2283105023 | H204: =(G85*G86)/(24*365) -> 0.3652968037
A205: On-demand web server weighted utilization | B205: =(B133*B134)/(24*365) -> 0.1095890411 | C205: =B84*C204 -> 0.3652968037 | D205: =C84*D204 -> 0.3652968037 | E205: =D84*E204 -> 0 | F205: =E84*F204 -> 0 | G205: =F84*G204 -> 0.4566210046 | H205: =G84*H204 -> 0.3652968037
A206: Weighted utilization | B206: =SUM(B205:H205)/SUM(B84:G84) -> 0.3324200913
A208: TOTAL COSTS PER MONTH
A209: Monthly Costs | B209: Test Delivery | C209: Test Int & Scoring | D209: Test Reg & Adm | E209: SSO | F209: Mon & Alerting | G209: Shared Services | H209: Assmt Creation & Mgmt | I209: Total
A210: Load balancer | B210: =CEILING(B107*(24*DaysPerMonth*B176)+(B132*B133*B134/12*(1+DataCapacityOH)*B177),0.01) -> 119.9 | C210: =B$79*CEILING(B80*(24*DaysPerMonth*C176)+(B81*B85*B86/12*(1+DataCapacityOH)*C177),0.01) -> 125.82 | D210: =C$79*CEILING(C80*(24*DaysPerMonth*D176)+(C81*C85*C86/12*(1+DataCapacityOH)*D177),0.01) -> 263.64 | E210: =D$79*CEILING(D80*(24*DaysPerMonth*E176)+(D81*D85*D86/12*(1+DataCapacityOH)*E177),0.01) -> 51.27 | F210: =E$79*CEILING(E80*(24*DaysPerMonth*F176)+(E81*E85*E86/12*(1+DataCapacityOH)*F177),0.01) -> 0 | G210: =F$79*CEILING(F80*(24*DaysPerMonth*G176)+(F81*F85*F86/12*(1+DataCapacityOH)*G177),0.01) -> 19.97 | H210: =IF(AssmtCreationMgmt="No",0,G$79*CEILING(G80*(24*DaysPerMonth*H176)+(G81*G85*G86/12*(1+DataCapacityOH)*H177),0.01)) -> 31.64 | I210: =SUM(B210:H210) -> 612.24
A211: Data transfer out | B211: =CEILING(B132*B133*(B134/12)*B178,0.01) -> 1219.2 | C211: =CEILING(B81*B85*(B86/12)*C178,0.01) -> 32 | D211: =CEILING(C81*C85*(C86/12)*D178,0.01) -> 2944 | E211: =CEILING(D81*D85*(D86/12)*E178,0.01) -> 176 | F211: =CEILING(E81*E85*(E86/12)*F178,0.01) -> 0 | G211: =CEILING(F81*F85*(F86/12)*G178,0.01) -> 20 | H211: =IF(AssmtCreationMgmt="No",0,CEILING(G81*G85*(G86/12)*H178,0.01)) -> 160 | I211: 4551.2
A212: Baseline web server | B212: Not Applicable | C212: =B$79*CEILING(B83*24*DaysPerMonth*C179,0.01) -> 2336.58 | D212: =C$79*CEILING(C83*24*DaysPerMonth*D179,0.01) -> 1226.84 | E212: =D$79*CEILING(D83*24*DaysPerMonth*E179,0.01) -> 4904.4 | F212: =E$79*CEILING(E83*24*DaysPerMonth*F179,0.01) -> 0 | G212: =F$79*CEILING(F83*24*DaysPerMonth*G179,0.01) -> 389.43 | H212: =IF(AssmtCreationMgmt="No",0,G$79*CEILING(G83*24*DaysPerMonth*H179,0.01)) -> 389.43 | I212: 9246.68
A213: On-demand web server | B213: Not Applicable | C213: =B$79*CEILING(B84*24*DaysPerMonth*((B85*B86)/(24*365))*C179,0.01) -> 426.78 | D213: =C$79*CEILING(C84*24*DaysPerMonth*((C85*C86)/(24*365))*D179,0.01) -> 224.08 | E213: =D$79*CEILING(D84*24*DaysPerMonth*((D85*D86)/(24*365))*E179,0.01) -> 0 | F213: =E$79*CEILING(E84*24*DaysPerMonth*((E85*E86)/(24*365))*F179,0.01) -> 0 | G213: =F$79*CEILING(F84*24*DaysPerMonth*((F85*F86)/(24*365))*G179,0.01) -> 88.91 | H213: =IF(AssmtCreationMgmt="No",0,G$79*CEILING(G84*24*DaysPerMonth*((G85*G86)/(24*365))*H179,0.01)) -> 71.13 | I213: 810.9
A214: Kubernetes master node | B214: =CEILING(B108*24*DaysPerMonth*B180,0.01) -> 194.72 | C214: Not Applicable | D214: Not Applicable | E214: Not Applicable | F214: Not Applicable | G214: Not Applicable | H214: Not Applicable | I214: =B214 -> 194.72
A215: Kubernetes worker node | B215: =CEILING(B116*24*DaysPerMonth*B181,0.01) -> 15187.54 | C215: Not Applicable | D215: Not Applicable | E215: Not Applicable | F215: Not Applicable | G215: Not Applicable | H215: Not Applicable | I215: =B215 -> 15187.54
A216: Web server storage | B216: =CEILING(((B108*B110)+(B116*B118)*B182)+(B108*B111*B183*SecondsPerMonth/10^6)+(B116*B119*B183*SecondsPerMonth/10^6)+(B108*B112*B184)+(B116*B120*B184)+(B108*B113*B185)+(B116*B121*B185)+(B108*B114)+(B116*B122*B185)+(B108*B186)+(B116*B123*B186),0.01) -> 51.27 | C216: =B$79*CEILING((B83+B84)*((B88*C182)+(B89*C183*SecondsPerMonth/10^6)+(B90*C184)+(B91*C185)+(B92*C186)+(B93*C187)),0.01) -> 0 | D216: =C$79*CEILING((C83+C84)*((C88*D182)+(C89*D183*SecondsPerMonth/10^6)+(C90*D184)+(C91*D185)+(C92*D186)+(C93*D187)),0.01) -> 0 | E216: =D$79*CEILING((D83+D84)*((D88*E182)+(D89*E183*SecondsPerMonth/10^6)+(D90*E184)+(D91*E185)+(D92*E186)+(D93*E187)),0.01) -> 128.86 | F216: =E$79*CEILING((E83+E84)*((E88*F182)+(E89*F183*SecondsPerMonth/10^6)+(E90*F184)+(E91*F185)+(E92*F186)+(E93*F187)),0.01) -> 113.25 | G216: =F$79*CEILING((F83+F84)*((F88*G182)+(F89*G183*SecondsPerMonth/10^6)+(F90*G184)+(F91*G185)+(F92*G186)+(F93*G187)),0.01) -> 0 | H216: =IF(AssmtCreationMgmt="No",0,G$79*CEILING((G83+G84)*((G88*H182)+(G89*H183*SecondsPerMonth/10^6)+(G90*H184)+(G91*H185)+(G92*H186)+(G93*H187)),0.01)) -> 0 | I216: =SUM(B216:H216) -> 293.38
A217: Database server | B217: Not Applicable | C217: =B$79*CEILING(C188*24*DaysPerMonth,0.01) -> 1625.04 | D217: =C$79*CEILING(D188*24*DaysPerMonth,0.01) -> 270.84 | E217: =D$79*CEILING(E188*24*DaysPerMonth,0.01) -> 0 | F217: =E$79*CEILING(F188*24*DaysPerMonth,0.01) -> 0 | G217: =F$79*CEILING(G188*24*DaysPerMonth,0.01) -> 0 | H217: =G$79*CEILING(H188*24*DaysPerMonth,0.01) -> 241.56 | I217: =SUM(C217:H217) -> 2137.44
A218: Database server storage | B218: Not Applicable | C218: =B$79*CEILING((B97*C191)+(B98*C192*SecondsPerMonth/1000000)+(B99*C193)+(B100*C194)+(B101*C195)+(B102*C196),0.01) -> 1318.5 | D218: =C$79*CEILING((C97*D191)+(C98*D192*SecondsPerMonth/1000000)+(C99*D193)+(C100*D194)+(C101*D195)+(C102*D196),0.01) -> 223.5 | E218: =D$79*CEILING((D97*E191)+(D98*E192*SecondsPerMonth/1000000)+(D99*E193)+(D100*E194)+(D101*E195)+(D102*E196),0.01) -> 0 | F218: =E$79*CEILING((E97*F191)+(E98*F192*SecondsPerMonth/1000000)+(E99*F193)+(E100*F194)+(E101*F195)+(E102*F196),0.01) -> 0 | G218: =F$79*CEILING((F97*G191)+(F98*G192*SecondsPerMonth/1000000)+(F99*G193)+(F100*G194)+(F101*G195)+(F102*G196),0.01) -> 85 | H218: =G$79*CEILING((G97*H191)+(G98*H192*SecondsPerMonth/1000000)+(G99*H193)+(G100*H194)+(G101*H195)+(G102*H196),0.01) -> 850 | I218: =SUM(C218:H218) -> 2477
A219: Student WAR Database server | B219: =CEILING(B189*24*DaysPerMonth,0.01) -> 135.42 | C219: Not Applicable | D219: Not Applicable | E219: Not Applicable | F219: Not Applicable | G219: Not Applicable | H219: Not Applicable | I219: 135.42
A220: Student WAR Database server storage | B220: =CEILING((B141*B191)+(B142*B192*SecondsPerMonth/1000000)+(B143*B193)+(B144*B194)+(B145*B195)+(B146*B196),0.01) -> 301.82 | C220: Not Applicable | D220: Not Applicable | E220: Not Applicable | F220: Not Applicable | G220: Not Applicable | H220: Not Applicable | I220: 301.82
A221: Exam Database server | B221: =CEILING(B190*24*DaysPerMonth,0.01) -> 849.12 | C221: Not Applicable | D221: Not Applicable | E221: Not Applicable | F221: Not Applicable | G221: Not Applicable | H221: Not Applicable | I221: =SUM(B221:H221) -> 849.12
A222: Exam Database server storage | B222: =CEILING((B151*B191)+(B152*B192*SecondsPerMonth/1000000)+(B153*B193)+(B154*B194)+(B155*B195)+(B156*B196),0.01) -> 567.2 | C222: Not Applicable | D222: Not Applicable | E222: Not Applicable | F222: Not Applicable | G222: Not Applicable | H222: Not Applicable | I222: 567.2
A223: CloudWatch Monitoring | B223: =CEILING((B108+B116)*B199,0.01) -> 140 | C223: =B$79*CEILING((B83+B84)*C199,0.01) -> 63 | D223: =C$79*CEILING((C83+C84)*D199,0.01) -> 10.5 | E223: =D$79*CEILING((D83+D84)*E199,0.01) -> 14 | F223: =E$79*CEILING((E83+E84)*F199,0.01) -> 3.5 | G223: =F$79*CEILING((F83+F84)*G199,0.01) -> 14 | H223: =IF(AssmtCreationMgmt="No",0,G$79*CEILING((G83+G84)*H199,0.01)) -> 10.5 | I223: 255.5
A224: Elastic Search master | B224: =CEILING(B161*24*DaysPerMonth*B200,0.01) -> 331.6 | C224: Not Applicable | D224: Not Applicable | E224: Not Applicable | F224: Not Applicable | G224: Not Applicable | H224: Not Applicable | I224: =B224 -> 331.6
A225: Elastic Search data | B225: =CEILING(B163*24*DaysPerMonth*B201,0.01) -> 331.6 | C225: Not Applicable | D225: Not Applicable | E225: Not Applicable | F225: Not Applicable | G225: Not Applicable | H225: Not Applicable | I225: =B225 -> 331.6
... 30 more rows

Sheet Costs
A1: Region | B1: Table column | L1: Category | M1: Instance Type | N1: N. Virginia | O1: N. California | P1: Oregon | Q1: Units
A2: N. Virginia | B2: 2 | L2: No Web Server | M2: No Web Server | N2: 0 | O2: 0 | P2: 0 | Q2: each
A3: N. California | B3: 3 | L3: Data Transfer | M3: Data Transfer Out | N3: 0.12 | O3: 0.12 | P3: 0.12 | Q3: GB/hour
A4: Oregon | B4: 4 | L4: Load Balancer | M4: Load Balancer | N4: 0.025 | O4: 0.028 | P4: 0.025 | Q4: each
L5: Load Balancer | M5: Load Balancer Data | N5: 0.008 | O5: 0.008 | P5: 0.008 | Q5: GB/hour
A6: Ubuntu Support Costs | B6: Percent | L6: EC2 General Purpose | M6: m3.medium (GP) | N6: 0.067 | O6: 0.077 | P6: 0.067 | Q6: each
A7: Ubuntu Cloud Support Costs | B7: 75000 | L7: EC2 General Purpose | M7: m3.large (GP) | N7: 0.133 | O7: 0.154 | P7: 0.133 | Q7: each
L8: EC2 General Purpose | M8: m3.xlarge (GP) | N8: 0.266 | O8: 0.308 | P8: 0.266 | Q8: each
A9: AWS Support Tiers | B9: Percent | L9: EC2 General Purpose | M9: m3.2xlarge (GP) | N9: 0.532 | O9: 0.616 | P9: 0.532 | Q9: each
A10: 0 | B10: 0.1 | L10: EC2 General Purpose | M10: m4.large (GP) | N10: 0.12 | O10: 0.14 | P10: 0.12 | Q10: each
A11: 150000 | B11: 0.07 | L11: EC2 General Purpose | M11: m4.xlarge (GP) | N11: 0.239 | O11: 0.279 | P11: 0.239 | Q11: each
A12: 500000 | B12: 0.05 | L12: EC2 General Purpose | M12: m4.2xlarge (GP) | N12: 0.479 | O12: 0.559 | P12: 0.479 | Q12: each
A13: 1000000 | B13: 0.03 | L13: EC2 General Purpose | M13: m4.4xlarge (GP) | N13: 0.958 | O13: 1.117 | P13: 0.958 | Q13: each
L14: EC2 General Purpose | M14: m4.10xlarge (GP) | N14: 2.394 | O14: 2.793 | P14: 2.394 | Q14: each
A15: Storage Type | B15: Cost GB/mo | L15: EC2 Compute Optimized | M15: c3.large (CO) | N15: 0.105 | O15: 0.12 | P15: 0.105 | Q15: each
A16: EBS Standard | B16: 0.1 | L16: EC2 Compute Optimized | M16: c3.xlarge (CO) | N16: 0.21 | O16: 0.239 | P16: 0.21 | Q16: each
A17: EBS Provisioned IOPS | B17: 0.125 | L17: EC2 Compute Optimized | M17: c3.2xlarge (CO) | N17: 0.42 | O17: 0.478 | P17: 0.42 | Q17: each
A18: EBS Snapshot to EC3 | B18: 0.095 | L18: EC2 Compute Optimized | M18: c3.4xlarge (CO) | N18: 0.84 | O18: 0.956 | P18: 0.84 | Q18: each
L19: EC2 Compute Optimized | M19: c3.8xlarge (CO) | N19: 1.68 | O19: 1.912 | P19: 1.68 | Q19: each
A20: Seconds per month | B20: Percent | C20: Million I/O | L20: EC2 Compute Optimized | M20: c4.large (CO) | N20: 0.105 | O20: 0.131 | P20: 0.105 | Q20: each
A21: Days per month | B21: 30.5 | C21: 0.1 | L21: EC2 Compute Optimized | M21: c4.xlarge (CO) | N21: 0.209 | O21: 0.262 | P21: 0.209 | Q21: each
A22: Seconds per month | B22: =ROUND(60*60*24*30.5,0) -> 2635200 | C22: 0.1 | L22: EC2 Compute Optimized | M22: c4.2xlarge (CO) | N22: 0.419 | O22: 0.524 | P22: 0.419 | Q22: each
L23: EC2 Compute Optimized | M23: c4.4xlarge (CO) | N23: 0.838 | O23: 1.049 | P23: 0.838 | Q23: each
A24: Maximum number of concurrent students | B24: Number | C24: Legacy Number | L24: EC2 Compute Optimized | M24: c4.8xlarge (CO) | N24: 1.675 | O24: 2.098 | P24: 1.675 | Q24: each
A25: Maximum number of concurrent students | B25: 6850 | C25: 45000 | L25: EC2 Memory Optimized | M25: r3.large (MO) | N25: 0.166 | O25: 0.185 | P25: 0.166 | Q25: each
L26: EC2 Memory Optimized | M26: r3.xlarge (MO) | N26: 0.333 | O26: 0.371 | P26: 0.333 | Q26: each
A27: Minimum Test Delivery Database Server Storage | B27: Number | L27: EC2 Memory Optimized | M27: r3.2xlarge (MO) | N27: 0.665 | O27: 0.741 | P27: 0.665 | Q27: each
A28: Minimum Test Delivery Database Server Storage | B28: 500 | L28: EC2 Memory Optimized | M28: r3.4xlarge (MO) | N28: 1.33 | O28: 1.482 | P28: 1.33 | Q28: each
L29: EC2 Memory Optimized | M29: r3.8xlarge (MO) | N29: 2.66 | O29: 2.964 | P29: 2.66 | Q29: each
A30: Minimum Test Integration and Scoring Database Server Storage | B30: Number | L30: EC2 Storage Optimized | M30: i2.xlarge (SO) | N30: 0.853 | O30: 0.938 | P30: 0.853 | Q30: each
A31: Minimum Test Integration and Scoring Database Server Storage | B31: 100 | L31: EC2 Storage Optimized | M31: i2.2xlarge (SO) | N31: 1.705 | O31: 1.876 | P31: 1.705 | Q31: each
L32: EC2 Storage Optimized | M32: i2.4xlarge (SO) | N32: 3.41 | O32: 3.751 | P32: 3.41 | Q32: each
A33: Minimum Test Registration and Administraton Database Server Storage | B33: Number | L33: EC2 Storage Optimized | M33: i2.8xlarge (SO) | N33: 6.82 | O33: 7.502 | P33: 6.82 | Q33: each
A34: Minimum Test Registration and Administraton Database Server Storage | B34: 100
L35: EBS Storage | M35: Std EBS Storage | N35: 0.1 | O35: 0.12 | P35: 0.1 | Q35: GB
A36: Minimum Single Sign-On Database Server Storage | B36: Number | L36: EBS Storage | M36: Std EBS Storage I/O Requests | N36: 0.05 | O36: 0.08 | P36: 0.05 | Q36: 10^6 I/O Requests
A37: Minimum Single Sign-On Database Server Storage | B37: 50 | L37: EBS Storage | M37: Std S3 Snapshot | N37: 0.095 | O37: 0.105 | P37: 0.095 | Q37: GB
L38: EBS Storage | M38: Std Prov IOPS EBS Storage | N38: 0.125 | O38: 0.138 | P38: 0.125 | Q38: GB
A39: Yes/No List | L39: EBS Storage | M39: Std Prov IOPS EBS Storage IOPs | N39: 0.065 | O39: 0.072 | P39: 0.065 | Q39: Provisioned IOPS per sec
B40: Yes | L40: EBS Storage | M40: Std Prov IOPS S3 Snapshot | N40: 0.095 | O40: 0.105 | P40: 0.095 | Q40: GB
B41: No
L42: No DB Server | M42: No DB Server | N42: 0 | O42: 0 | P42: 0 | Q42: each
A43: Database Engine List | L43: RDS Instance | M43: db.m3.medium (DB-GP) | N43: 0.09 | O43: 0.095 | P43: 0.09 | Q43: each
A44: MySQL | L44: RDS Instance | M44: db.m3.large (DB-GB) | N44: 0.185 | O44: 0.2 | P44: 0.185 | Q44: each
A45: Aurora | L45: RDS Instance | M45: db.m3.xlarge (DB-GP) | N45: 0.37 | O45: 0.4 | P45: 0.37 | Q45: each
L46: RDS Instance | M46: db.m3.2xlarge (DB-GP) | N46: 0.74 | O46: 0.795 | P46: 0.74 | Q46: each
A47: Maximum number of concurrent students per pod | B47: Number | L47: RDS Instance | M47: db.m4.large (DB-GP) | N47: 0.175 | O47: 0.204 | P47: 0.175 | Q47: each
A48: Student WAR | B48: 3750 | L48: RDS Instance | M48: db.m4.xlarge (DB-GP) | N48: 0.35 | O48: 0.408 | P48: 0.35 | Q48: each
A49: Proctor WAR | B49: 15000 | L49: RDS Instance | M49: db.m4.2xlarge (DB-GP) | N49: 0.7 | O49: 0.817 | P49: 0.7 | Q49: each
A50: Exam Service | B50: 3333 | L50: RDS Instance | M50: db.m4.4xlarge (DB-GP) | N50: 1.401 | O50: 1.634 | P50: 1.401 | Q50: each
L51: RDS Instance | M51: db.m4.10xlarge (DB-GP) | N51: 3.502 | O51: 4.086 | P51: 3.502 | Q51: each
A52: Average number of students per IOPS | B52: Number | L52: RDS Instance | M52: db.r3.large (DB-MO) | N52: 0.24 | O52: 0.265 | P52: 0.24 | Q52: each
B53: 300 | L53: RDS Instance | M53: db.r3.xlarge (DB-MO) | N53: 0.475 | O53: 0.53 | P53: 0.475 | Q53: each
L54: RDS Instance | M54: db.r3.2xlarge (DB-MO) | N54: 0.945 | O54: 1.055 | P54: 0.945 | Q54: each
L55: RDS Instance | M55: db.r3.4xlarge (DB-MO) | N55: 1.89 | O55: 2.11 | P55: 1.89 | Q55: each
L56: RDS Instance | M56: db.r3.8xlarge (DB-MO) | N56: 3.78 | O56: 4.215 | P56: 3.78 | Q56: each
L57: RDS Instance | M57: db.m2.xl (DB-MO) | N57: 0.33 | O57: 0.36 | P57: 0.33 | Q57: each
L58: RDS Instance | M58: db.m2.2xl (DB-MO) | N58: 0.66 | O58: 0.72 | P58: 0.66 | Q58: each
L59: RDS Instance | M59: db.m2.4xl (DB-MO) | N59: 1.32 | O59: 1.44 | P59: 1.32 | Q59: each
L60: RDS Instance | M60: db.cr1.8xl (DB-MO) | N60: 4.725 | O60: N/A | P60: 4.725 | Q60: each
L61: RDS Instance | M61: db.m3.medium (DB-GP-MZ) | N61: 0.9 | O61: 0.095 | P61: 0.9 | Q61: each
L62: RDS Instance | M62: db.m3.large (DB-GP-MZ) | N62: 0.185 | O62: 0.2 | P62: 0.185 | Q62: each
L63: RDS Instance | M63: db.m3.xlarge (DB-GP-MZ) | N63: 0.37 | O63: 0.4 | P63: 0.37 | Q63: each
L64: RDS Instance | M64: db.m3.2xlarge (DB-GP-MZ) | N64: 0.74 | O64: 0.795 | P64: 0.74 | Q64: each
L65: RDS Instance | M65: db.m4.large (DB-GP-MZ) | N65: 0.35 | O65: 0.408 | P65: 0.35 | Q65: each
L66: RDS Instance | M66: db.m4.xlarge (DB-GP-MZ) | N66: 0.7 | O66: 0.816 | P66: 0.7 | Q66: each
L67: RDS Instance | M67: db.m4.2xlarge (DB-GP-MZ) | N67: 1.4 | O67: 1.634 | P67: 1.4 | Q67: each
L68: RDS Instance | M68: db.m4.4xlarge (DB-GP-MZ) | N68: 2.802 | O68: 3.268 | P68: 2.802 | Q68: each
L69: RDS Instance | M69: db.m4.10xlarge (DB-GP-MZ) | N69: 7.004 | O69: 8.172 | P69: 7.004 | Q69: each
L70: RDS Instance | M70: db.r3.large (DB-MO-MZ) | N70: 0.48 | O70: 0.53 | P70: 0.48 | Q70: each
L71: RDS Instance | M71: db.r3.xlarge (DB-MO-MZ) | N71: 0.95 | O71: 1.06 | P71: 0.95 | Q71: each
L72: RDS Instance | M72: db.r3.2xlarge (DB-MO-MZ) | N72: 1.89 | O72: 2.11 | P72: 1.89 | Q72: each
L73: RDS Instance | M73: db.r3.4xlarge (DB-MO-MZ) | N73: 3.78 | O73: 4.22 | P73: 3.78 | Q73: each
L74: RDS Instance | M74: db.r3.8xlarge (DB-MO-MZ) | N74: 7.56 | O74: 8.43 | P74: 7.56 | Q74: each
L75: RDS Instance | M75: db.m2.xl (DB-MO-MZ) | N75: 0.66 | O75: 0.72 | P75: 0.66 | Q75: each
L76: RDS Instance | M76: db.m2.2xl (DB-MO-MZ) | N76: 1.32 | O76: 1.44 | P76: 1.32 | Q76: each
L77: RDS Instance | M77: db.m2.4xl (DB-MO-MZ) | N77: 2.64 | O77: 2.88 | P77: 2.64 | Q77: each
L78: RDS Instance | M78: db.cr1.8xl (DB-MO-MZ) | N78: 8.035 | O78: N/A | P78: 8.035 | Q78: each
L80: RDS Storage | M80: DB Std EBS Storage | N80: 0.115 | O80: 0.138 | P80: 0.115 | Q80: GB
L81: RDS Storage | M81: DB Std EBS Storage I/O Requests | N81: 0.1 | O81: 0.11 | P81: 0.1 | Q81: Million I/O Requests
L82: RDS Storage | M82: DB Prov IOPS EBS Storage | N82: 0.125 | O82: 0.138 | P82: 0.125 | Q82: GB
L83: RDS Storage | M83: DB Prov IOPS EBS Storage IOPs | N83: 0.1 | O83: 0.11 | P83: 0.1 | Q83: Provisioned IOPS per sec
L84: RDS Storage | M84: DB MultiAZ Prov IOPS EBS Storage | N84: 0.25 | O84: 0.276 | P84: 0.25 | Q84: GB
L85: RDS Storage | M85: DB MultiAZ Prov IOPS EBS Storage IOPs | N85: 0.2 | O85: 0.22 | P85: 0.2 | Q85: Provisioned IOPS per sec
L87: CloudWatch Monitoring | M87: CloudWatch Monitoring | N87: 3.5 | O87: 3.5 | P87: 3.5 | Q87: Provisioned IOPS per sec
L89: Elasticach Instance Type | M89: No Cache Server | N89: 0 | O89: 0 | P89: 0 | Q89: each
L90: Elasticach Instance Type | M90: cache.t2.micro (GP) | N90: 0.017 | O90: 0.022 | P90: 0.017 | Q90: each
L91: Elasticach Instance Type | M91: cache.t2.small (GP) | N91: 0.034 | O91: 0.044 | P91: 0.034 | Q91: each
L92: Elasticach Instance Type | M92: cache.t2.medium (GP) | N92: 0.068 | O92: 0.088 | P92: 0.068 | Q92: each
L93: Elasticach Instance Type | M93: cache.m3.medium (GP) | N93: 0.09 | O93: 0.095 | P93: 0.09 | Q93: each
L94: Elasticach Instance Type | M94: cache.m3.large (GP) | N94: 0.182 | O94: 0.2 | P94: 0.182 | Q94: each
L95: Elasticach Instance Type | M95: cache.m3.xlarge (GP) | N95: 0.364 | O95: 0.4 | P95: 0.364 | Q95: each
L96: Elasticach Instance Type | M96: cache.m3.2xlarge (GP) | N96: 0.728 | O96: 0.795 | P96: 0.728 | Q96: each
L97: Elasticach Instance Type | M97: cache.m4.large (GP) | N97: 0.156 | O97: 0.182 | P97: 0.156 | Q97: each
L98: Elasticach Instance Type | M98: cache.m4.xlarge (GP) | N98: 0.311 | O98: 0.363 | P98: 0.311 | Q98: each
L99: Elasticach Instance Type | M99: cache.m4.2xlarge (GP) | N99: 0.623 | O99: 0.727 | P99: 0.623 | Q99: each
L100: Elasticach Instance Type | M100: cache.m4.4xlarge (GP) | N100: 1.245 | O100: 1.452 | P100: 1.245 | Q100: each
L101: Elasticach Instance Type | M101: cache.m4.10xlarge (GP) | N101: 3.112 | O101: 3.631 | P101: 3.112 | Q101: each
L102: Elasticach Instance Type | M102: cache.r3.large (MO) | N102: 0.228 | O102: 0.254 | P102: 0.228 | Q102: each
L103: Elasticach Instance Type | M103: cache.r3.xlarge (MO) | N103: 0.455 | O103: 0.507 | P103: 0.455 | Q103: each
L104: Elasticach Instance Type | M104: cache.r3.2xlarge (MO) | N104: 0.91 | O104: 1.014 | P104: 0.91 | Q104: each
L105: Elasticach Instance Type | M105: cache.r3.4xlarge (MO) | N105: 1.82 | O105: 2.028 | P105: 1.82 | Q105: each
L106: Elasticach Instance Type | M106: cache.43.8xlarge (MO) | N106: 3.64 | O106: 4.056 | P106: 3.64 | Q106: each
L108: No DB Server | M108: No DB Server | N108: 0 | O108: 0 | P108: 0 | Q108: each
L109: Aurora Instance | M109: db.t2.small | N109: 0.041 | O109: 0.053 | P109: 0.041 | Q109: each
L110: Aurora Instance | M110: db.t2.medium | N110: 0.082 | O110: 0.106 | P110: 0.082 | Q110: each
L111: Aurora Instance | M111: db.r3.large | N111: 0.29 | O111: 0.32 | P111: 0.29 | Q111: each
L112: Aurora Instance | M112: db.r3.xlarge | N112: 0.58 | O112: 0.64 | P112: 0.58 | Q112: each
L113: Aurora Instance | M113: db.r3.2xlarge | N113: 1.16 | O113: 1.28 | P113: 1.16 | Q113: each
L114: Aurora Instance | M114: db.r3.4xlarge | N114: 2.32 | O114: 2.56 | P114: 2.32 | Q114: each
L115: Aurora Instance | M115: db.r3.8xlarge | N115: 4.64 | O115: 5.12 | P115: 4.64 | Q115: each
L117: ES General Purpose | M117: t2.micro.elasticsearch (GP) | N117: 0.018 | O117: 0.024 | P117: 0.018 | Q117: each
L118: ES General Purpose | M118: t2.small.elasticsearch (GP) | N118: 0.036 | O118: 0.048 | P118: 0.036 | Q118: each
L119: ES General Purpose | M119: t2.medium.elasticsearch (GP) | N119: 0.073 | O119: 0.095 | P119: 0.073 | Q119: each
L120: ES General Purpose | M120: m3.medium.elasticsearch (GP) | N120: 0.094 | O120: 0.108 | P120: 0.094 | Q120: each
L121: ES General Purpose | M121: m3.large.elasticsearch (GP) | N121: 0.188 | O121: 0.216 | P121: 0.188 | Q121: each
L122: ES General Purpose | M122: m3.xlarge.elasticsearch (GP) | N122: 0.376 | O122: 0.432 | P122: 0.376 | Q122: each
L123: ES General Purpose | M123: m3.2xlarge.elasticsearch (GP) | N123: 0.752 | O123: 0.864 | P123: 0.752 | Q123: each
L124: ES General Purpose | M124: m4.large.elasticsearch (GP) | N124: 0.151 | O124: 0.176 | P124: 0.151 | Q124: each
L125: ES General Purpose | M125: m4.xlarge.elasticsearch (GP) | N125: 0.301 | O125: 0.351 | P125: 0.301 | Q125: each
L126: ES General Purpose | M126: m4.2xlarge.elasticsearch (GP) | N126: 0.603 | O126: 0.704 | P126: 0.603 | Q126: each
L127: ES General Purpose | M127: m4.4xlarge.elasticsearch (GP) | N127: 1.207 | O127: 1.407 | P127: 1.207 | Q127: each
L128: ES General Purpose | M128: m4.10xlarge.elasticsearch (GP) | N128: 3.017 | O128: 3.52 | P128: 3.017 | Q128: each
L129: ES Compute Optimized | M129: c4.large.elasticsearch (CO) | N129: 0.148 | O129: 0.183 | P129: 0.148 | Q129: each
L130: ES Compute Optimized | M130: c4.xlarge.elasticsearch (CO) | N130: 0.294 | O130: 0.367 | P130: 0.294 | Q130: each
L131: ES Compute Optimized | M131: c4.2xlarge.elasticsearch (CO) | N131: 0.587 | O131: 0.735 | P131: 0.587 | Q131: each
L132: ES Compute Optimized | M132: c4.4xlarge.elasticsearch (CO) | N132: 1.174 | O132: 1.471 | P132: 1.174 | Q132: each
L133: ES Compute Optimized | M133: c4.8xlarge.elasticsearch (CO) | N133: 2.347 | O133: 2.94 | P133: 2.347 | Q133: each
L134: ES Memory Optimized | M134: r3.large.elasticsearch (MO) | N134: 0.245 | O134: 0.273 | P134: 0.245 | Q134: each
L135: ES Memory Optimized | M135: r3.xlarge.elasticsearch (MO) | N135: 0.49 | O135: 0.546 | P135: 0.49 | Q135: each
L136: ES Memory Optimized | M136: r3.2xlarge.elasticsearch (MO) | N136: 0.98 | O136: 1.092 | P136: 0.98 | Q136: each
L137: ES Memory Optimized | M137: r3.4xlarge.elasticsearch (MO) | N137: 1.96 | O137: 2.184 | P137: 1.96 | Q137: each
L138: ES Memory Optimized | M138: r3.8xlarge.elasticsearch (MO) | N138: 3.92 | O138: 4.368 | P138: 3.92 | Q138: each
L139: ES Memory Optimized | M139: r4.large.elasticsearch (MO) | N139: 0.196 | O139: 0.218 | P139: 0.196 | Q139: each
L140: ES Memory Optimized | M140: r4.xlarge.elasticsearch (MO) | N140: 0.392 | O140: 0.437 | P140: 0.392 | Q140: each
L141: ES Memory Optimized | M141: r4.2xlarge.elasticsearch (MO) | N141: 0.785 | O141: 0.875 | P141: 0.785 | Q141: each
L142: ES Memory Optimized | M142: r4.4xlarge.elasticsearch (MO) | N142: 1.596 | O142: 1.749 | P142: 1.596 | Q142: each
L143: ES Memory Optimized | M143: r4.8xlarge.elasticsearch (MO) | N143: 3.139 | O143: 3.497 | P143: 3.139 | Q143: each
L144: ES Memory Optimized | M144: r4.16xlarge.elasticsearch (MO) | N144: 6.278 | O144: 6.994 | P144: 6.278 | Q144: each
L145: ES Storage Optimized | M145: i2.xlarge.elasticsearch (SO) | N145: 1.194 | O145: 1.313 | P145: 1.194 | Q145: each
L146: ES Storage Optimized | M146: i2.2xlarge.elasticsearch (SO) | N146: 2.387 | O146: 2.626 | P146: 2.387 | Q146: each
L148: ES Storage | M148: Elasticsearch EBS Storage | N148: 0.135 | O148: 0.162 | P148: 0.135 | Q148: GB
L149: ES Storage | M149: Elasticsearch Provisioned IOPS EBS Storage | N149: 0.169 | O149: 0.186 | P149: 0.169 | Q149: GB
L150: ES Storage | M150: Elasticsearch Provisioned IOPS EBS Rate | N150: 0.088 | O150: 0.097 | P150: 0.088 | Q150: Provisioned IOPS per month
